[Event "Titled Tuesday Blitz March 21 Early 2023"]
[White "Sattarov, Bobir"]
[Black "Villalba, Marcelo"]
[WhiteFideId "14203081"]
[BlackFideId "3701859"]
[WhiteElo "2351"]
[BlackElo "2191"]
[Result "0-1"]
[Round "07"]
[TimeControl "180+2"]
[Date "2023.03.21"]
[WhiteClock "0:00:01"]
[BlackClock "0:00:03"]

1. e4 {[%clk 0:03:00]}  e5 {[%clk 0:02:59]} 2. Nf3 {[%clk 0:03:00]}  Nc6 {[%clk 0:02:58]} 3. Nc3 {[%clk 0:03:01]}  Nf6 {[%clk 0:02:58]} 4. a3 {[%clk 0:03:01]}  Be7 {[%clk 0:02:51]} 5. d4 {[%clk 0:02:59]}  exd4 {[%clk 0:02:50]} 6. Nxd4 {[%clk 0:03:00]}  d6 {[%clk 0:02:50]} 7. g3 {[%clk 0:02:59]}  O-O {[%clk 0:02:47]} 8. Bg2 {[%clk 0:02:58]}  Bd7 {[%clk 0:02:47]} 9. O-O {[%clk 0:02:56]}  Re8 {[%clk 0:02:46]} 10. h3 {[%clk 0:02:55]}  h6 {[%clk 0:02:43]} 11. Nde2 {[%clk 0:02:55]}  Bf8 {[%clk 0:02:42]} 12. g4 {[%clk 0:02:49]}  g6 {[%clk 0:02:39]} 13. Ng3 {[%clk 0:02:47]}  Bg7 {[%clk 0:02:34]} 14. f4 {[%clk 0:02:47]}  Nh7 {[%clk 0:02:19]} 15. Nd5 {[%clk 0:02:39]}  Ne7 {[%clk 0:02:02]} 16. Ne3 {[%clk 0:02:31]}  Bc6 {[%clk 0:01:54]} 17. Qd3 {[%clk 0:02:27]}  Nf6 {[%clk 0:01:47]} 18. Bd2 {[%clk 0:01:59]}  d5 {[%clk 0:01:38]} 19. e5 {[%clk 0:01:55]}  Ne4 {[%clk 0:01:37]} 20. Be1 {[%clk 0:01:35]}  Nxg3 {[%clk 0:01:23]} 21. Bxg3 {[%clk 0:01:36]}  d4 {[%clk 0:01:22]} 22. Bxc6 {[%clk 0:01:19]}  Nxc6 {[%clk 0:01:21]} 23. Nc4 {[%clk 0:01:14]}  Qd5 {[%clk 0:01:16]} 24. Rae1 {[%clk 0:01:14]}  Rad8 {[%clk 0:01:15]} 25. Re2 {[%clk 0:01:00]}  b5 {[%clk 0:01:14]} 26. Nd2 {[%clk 0:00:59]}  Na5 {[%clk 0:01:10]} 27. Nf3 {[%clk 0:00:41]}  Nc4 {[%clk 0:01:00]} 28. b3 {[%clk 0:00:40]}  Ne3 {[%clk 0:00:55]} 29. Rff2 {[%clk 0:00:39]}  a6 {[%clk 0:00:54]} 30. b4 {[%clk 0:00:35]}  c5 {[%clk 0:00:37]} 31. bxc5 {[%clk 0:00:34]}  Qxc5 {[%clk 0:00:37]} 32. Bh4 {[%clk 0:00:30]}  Rd5 {[%clk 0:00:26]} 33. Kh2 {[%clk 0:00:26]}  Nc4 {[%clk 0:00:23]} 34. Nd2 {[%clk 0:00:23]}  Qxa3 {[%clk 0:00:20]} 35. Nxc4 {[%clk 0:00:20]}  Qxd3 {[%clk 0:00:20]} 36. cxd3 {[%clk 0:00:21]}  bxc4 {[%clk 0:00:21]} 37. dxc4 {[%clk 0:00:22]}  Rc5 {[%clk 0:00:21]} 38. Ra2 {[%clk 0:00:20]}  Rxc4 {[%clk 0:00:20]} 39. Rxa6 {[%clk 0:00:19]}  d3 {[%clk 0:00:18]} 40. Rd6 {[%clk 0:00:18]}  g5 {[%clk 0:00:18]} 41. Bg3 {[%clk 0:00:15]}  gxf4 {[%clk 0:00:18]} 42. Bh4 {[%clk 0:00:15]}  Bxe5 {[%clk 0:00:16]} 43. Rxd3 {[%clk 0:00:14]}  Rec8 {[%clk 0:00:12]} 44. Kg2 {[%clk 0:00:09]}  Rc3 {[%clk 0:00:11]} 45. Rdf3 {[%clk 0:00:08]}  Rxf3 {[%clk 0:00:11]} 46. Kxf3 {[%clk 0:00:07]}  Rc3+ {[%clk 0:00:11]} 47. Ke4 {[%clk 0:00:08]}  Re3+ {[%clk 0:00:08]} 48. Kf5 {[%clk 0:00:08]}  Kg7 {[%clk 0:00:09]} 49. Ra2 {[%clk 0:00:06]}  f3 {[%clk 0:00:02]} 50. Bf2 {[%clk 0:00:05]}  Re2 {[%clk 0:00:02]} 51. Rxe2 {[%clk 0:00:04]}  fxe2 {[%clk 0:00:03]} 52. Kxe5 {[%clk 0:00:05]}  Kg6 {[%clk 0:00:03]} 53. Kf4 {[%clk 0:00:04]}  f6 {[%clk 0:00:01]} 54. Kf3 {[%clk 0:00:04]}  f5 {[%clk 0:00:02]} 55. gxf5+ {[%clk 0:00:03]}  Kxf5 {[%clk 0:00:02]} 56. Bg3 {[%clk 0:00:02]}  Kg5 {[%clk 0:00:03]} 57. Kxe2 {[%clk 0:00:01]}  Kh5 {[%clk 0:00:03]} 58. Kf3 {[%clk 0:00:01]}  Kg5 {[%clk 0:00:04]} 59. Bf2 {[%clk 0:00:01]}  Kh5 {[%clk 0:00:03]} 0-1


[Site "https://www.chess.com"]

[Event "Titled Tuesday Blitz March 21 Early 2023"]
[White "Savitha Shri B"]
[Black "Karthik Rajaa"]
[WhiteFideId "35061887"]
[BlackFideId "25035215"]
[WhiteElo "2191"]
[BlackElo "2215"]
[Result "0-1"]
[Round "07"]
[TimeControl "180+2"]
[Date "2023.03.21"]
[WhiteClock "0:00:12"]
[BlackClock "0:00:14"]

1. Nf3 {[%clk 0:02:18]}  Nf6 {[%clk 0:02:59]} 2. g3 {[%clk 0:02:19]}  g6 {[%clk 0:02:59]} 3. Bg2 {[%clk 0:02:20]}  Bg7 {[%clk 0:03:00]} 4. O-O {[%clk 0:02:21]}  O-O {[%clk 0:03:00]} 5. c4 {[%clk 0:02:21]}  c5 {[%clk 0:02:59]} 6. Nc3 {[%clk 0:02:22]}  Nc6 {[%clk 0:02:59]} 7. d4 {[%clk 0:02:22]}  d6 {[%clk 0:03:00]} 8. d5 {[%clk 0:02:22]}  Na5 {[%clk 0:03:00]} 9. Nd2 {[%clk 0:02:20]}  e6 {[%clk 0:03:00]} 10. dxe6 {[%clk 0:02:15]}  Bxe6 {[%clk 0:03:01]} 11. b3 {[%clk 0:02:04]}  d5 {[%clk 0:02:59]} 12. Bb2 {[%clk 0:01:39]}  d4 {[%clk 0:02:51]} 13. Na4 {[%clk 0:01:39]}  Rc8 {[%clk 0:02:43]} 14. Ba3 {[%clk 0:01:35]}  b6 {[%clk 0:02:21]} 15. b4 {[%clk 0:01:35]}  Nxc4 {[%clk 0:02:21]} 16. Nxc4 {[%clk 0:01:34]}  Bxc4 {[%clk 0:02:22]} 17. bxc5 {[%clk 0:01:34]}  b5 {[%clk 0:02:21]} 18. Nb2 {[%clk 0:01:34]}  Re8 {[%clk 0:02:19]} 19. Nd3 {[%clk 0:01:32]}  Ne4 {[%clk 0:02:15]} 20. Bb2 {[%clk 0:01:19]}  Nxc5 {[%clk 0:02:07]} 21. Nxc5 {[%clk 0:01:18]}  Rxc5 {[%clk 0:02:07]} 22. Re1 {[%clk 0:01:18]}  Rc7 {[%clk 0:01:33]} 23. Qd2 {[%clk 0:01:18]}  Rce7 {[%clk 0:01:15]} 24. Bf3 {[%clk 0:01:18]}  Bd5 {[%clk 0:01:15]} 25. Bxd5 {[%clk 0:00:59]}  Qxd5 {[%clk 0:01:16]} 26. e3 {[%clk 0:01:00]}  d3 {[%clk 0:00:52]} 27. Bxg7 {[%clk 0:00:59]}  Kxg7 {[%clk 0:00:53]} 28. Red1 {[%clk 0:01:00]}  Rd7 {[%clk 0:00:48]} 29. Rab1 {[%clk 0:01:00]}  a6 {[%clk 0:00:40]} 30. Rb3 {[%clk 0:00:59]}  Red8 {[%clk 0:00:37]} 31. Qb2+ {[%clk 0:00:58]}  Kg8 {[%clk 0:00:35]} 32. Qa3 {[%clk 0:00:47]}  d2 {[%clk 0:00:32]} 33. Rb2 {[%clk 0:00:45]}  Qf3 {[%clk 0:00:26]} 34. Rbb1 {[%clk 0:00:36]}  Rd6 {[%clk 0:00:25]} 35. Qb2 {[%clk 0:00:31]}  Qe2 {[%clk 0:00:20]} 36. Qc2 {[%clk 0:00:31]}  Rf6 {[%clk 0:00:17]} 37. f4 {[%clk 0:00:20]}  Qxe3+ {[%clk 0:00:16]} 38. Kg2 {[%clk 0:00:21]}  Qe2+ {[%clk 0:00:16]} 39. Kg1 {[%clk 0:00:22]}  Rfd6 {[%clk 0:00:13]} 40. Qc7 {[%clk 0:00:22]}  Rd3 {[%clk 0:00:11]} 41. a4 {[%clk 0:00:15]}  b4 {[%clk 0:00:10]} 42. a5 {[%clk 0:00:14]}  b3 {[%clk 0:00:11]} 43. Qb7 {[%clk 0:00:12]}  Qe3+ {[%clk 0:00:10]} 44. Kg2 {[%clk 0:00:12]}  R8d6 {[%clk 0:00:11]} 45. Qb8+ {[%clk 0:00:12]}  Kg7 {[%clk 0:00:11]} 46. Qb4 {[%clk 0:00:12]}  Qd4 {[%clk 0:00:11]} 47. Qb7 {[%clk 0:00:11]}  Qd5+ {[%clk 0:00:11]} 48. Qxd5 {[%clk 0:00:11]}  R6xd5 {[%clk 0:00:12]} 49. Rb2 {[%clk 0:00:12]}  Rxa5 {[%clk 0:00:12]} 50. Kf2 {[%clk 0:00:12]}  Rb5 {[%clk 0:00:12]} 51. Ke2 {[%clk 0:00:11]}  Rd6 {[%clk 0:00:12]} 52. Rdxd2 {[%clk 0:00:11]}  Rxd2+ {[%clk 0:00:12]} 53. Kxd2 {[%clk 0:00:12]}  a5 {[%clk 0:00:13]} 54. Kc3 {[%clk 0:00:13]}  a4 {[%clk 0:00:14]} 55. Rf2 {[%clk 0:00:12]}  a3 {[%clk 0:00:14]} 56. Rf1 {[%clk 0:00:12]}  b2 {[%clk 0:00:14]} 57. Rb1 {[%clk 0:00:12]}  a2 {[%clk 0:00:14]} 0-1


[Site "https://www.chess.com"]

[Event "Titled Tuesday Blitz March 21 Early 2023"]
[White "Nogerbek, Kazybek"]
[Black "Quinones Garcia, Santiago"]
[WhiteFideId "13710427"]
[BlackFideId "4408497"]
[WhiteElo "2501"]
[BlackElo "2263"]
[Result "1-0"]
[Round "07"]
[TimeControl "180+2"]
[Date "2023.03.21"]
[WhiteClock "0:02:05"]
[BlackClock "0:00:32"]

1. d4 {[%clk 0:03:00]}  Nf6 {[%clk 0:02:56]} 2. Nc3 {[%clk 0:03:01]}  d5 {[%clk 0:02:55]} 3. Bf4 {[%clk 0:03:01]}  c6 {[%clk 0:02:56]} 4. e3 {[%clk 0:03:01]}  g6 {[%clk 0:02:56]} 5. Nf3 {[%clk 0:03:01]}  Bg7 {[%clk 0:02:57]} 6. Ne5 {[%clk 0:03:01]}  O-O {[%clk 0:02:57]} 7. h4 {[%clk 0:03:00]}  Nbd7 {[%clk 0:02:56]} 8. Be2 {[%clk 0:02:59]}  Nxe5 {[%clk 0:02:53]} 9. Bxe5 {[%clk 0:03:00]}  b5 {[%clk 0:02:52]} 10. g4 {[%clk 0:02:58]}  a5 {[%clk 0:02:47]} 11. h5 {[%clk 0:02:57]}  Be6 {[%clk 0:02:46]} 12. g5 {[%clk 0:02:54]}  Nd7 {[%clk 0:02:38]} 13. Bxg7 {[%clk 0:02:54]}  Kxg7 {[%clk 0:02:39]} 14. f4 {[%clk 0:02:55]}  Rh8 {[%clk 0:02:30]} 15. h6+ {[%clk 0:02:47]}  Kf8 {[%clk 0:02:28]} 16. Bd3 {[%clk 0:02:46]}  a4 {[%clk 0:02:27]} 17. a3 {[%clk 0:02:46]}  Qb6 {[%clk 0:02:24]} 18. Qd2 {[%clk 0:02:44]}  b4 {[%clk 0:02:24]} 19. axb4 {[%clk 0:02:41]}  Qxb4 {[%clk 0:02:24]} 20. Kf2 {[%clk 0:02:38]}  c5 {[%clk 0:02:17]} 21. Bb5 {[%clk 0:02:33]}  Nb6 {[%clk 0:02:07]} 22. dxc5 {[%clk 0:02:33]}  Qxc5 {[%clk 0:02:05]} 23. Qd4 {[%clk 0:02:34]}  Qxd4 {[%clk 0:01:48]} 24. exd4 {[%clk 0:02:35]}  f6 {[%clk 0:01:48]} 25. Nxa4 {[%clk 0:02:34]}  Nxa4 {[%clk 0:01:47]} 26. Bxa4 {[%clk 0:02:29]}  Kf7 {[%clk 0:01:46]} 27. Bb3 {[%clk 0:02:29]}  Rab8 {[%clk 0:01:44]} 28. Rhe1 {[%clk 0:02:26]}  Rb6 {[%clk 0:01:39]} 29. Ra7 {[%clk 0:02:26]}  Rc8 {[%clk 0:01:35]} 30. Re3 {[%clk 0:02:24]}  Rb4 {[%clk 0:01:16]} 31. gxf6 {[%clk 0:02:05]}  Kxf6 {[%clk 0:00:31]} 32. Ra6 {[%clk 0:02:05]}  Rxd4 {[%clk 0:00:31]} 33. Raxe6+ {[%clk 0:02:05]}  Kf5 {[%clk 0:00:32]} 34. Kg3 {[%clk 0:02:05]} 1-0


[Site "https://www.chess.com"]

[Event "Titled Tuesday Blitz March 21 Early 2023"]
[White "Lorparizangeneh, Shahin"]
[Black "Hirneise, Jens"]
[WhiteFideId "12521604"]
[BlackFideId "24614734"]
[WhiteElo "2526"]
[BlackElo "2345"]
[Result "1-0"]
[Round "07"]
[TimeControl "180+2"]
[Date "2023.03.21"]
[WhiteClock "0:01:04"]
[BlackClock "0:00:19"]

1. e4 {[%clk 0:03:00]}  c5 {[%clk 0:02:56]} 2. Nf3 {[%clk 0:02:57]}  a6 {[%clk 0:02:57]} 3. a4 {[%clk 0:02:54]}  Nc6 {[%clk 0:02:54]} 4. Bc4 {[%clk 0:02:51]}  e6 {[%clk 0:02:53]} 5. O-O {[%clk 0:02:48]}  d5 {[%clk 0:02:51]} 6. exd5 {[%clk 0:02:48]}  exd5 {[%clk 0:02:52]} 7. Re1+ {[%clk 0:02:48]}  Be7 {[%clk 0:02:51]} 8. Bf1 {[%clk 0:02:49]}  Nf6 {[%clk 0:02:51]} 9. d4 {[%clk 0:02:50]}  O-O {[%clk 0:02:48]} 10. Nc3 {[%clk 0:02:48]}  Bg4 {[%clk 0:02:39]} 11. dxc5 {[%clk 0:02:42]}  Bxc5 {[%clk 0:02:37]} 12. h3 {[%clk 0:02:42]}  Bh5 {[%clk 0:02:22]} 13. g4 {[%clk 0:02:33]}  Bg6 {[%clk 0:02:19]} 14. Bg2 {[%clk 0:02:07]}  d4 {[%clk 0:02:12]} 15. Ne2 {[%clk 0:02:02]}  d3 {[%clk 0:02:12]} 16. cxd3 {[%clk 0:02:01]}  Qxd3 {[%clk 0:02:09]} 17. Qxd3 {[%clk 0:01:56]}  Bxd3 {[%clk 0:02:10]} 18. Nf4 {[%clk 0:01:56]}  Bc2 {[%clk 0:02:01]} 19. Be3 {[%clk 0:01:51]}  Bxe3 {[%clk 0:01:58]} 20. Rxe3 {[%clk 0:01:52]}  Rfd8 {[%clk 0:01:56]} 21. Ne5 {[%clk 0:01:38]}  Nxe5 {[%clk 0:01:49]} 22. Rxe5 {[%clk 0:01:39]}  Rab8 {[%clk 0:01:50]} 23. g5 {[%clk 0:01:34]}  Nd7 {[%clk 0:01:47]} 24. Re7 {[%clk 0:01:35]}  Kf8 {[%clk 0:01:44]} 25. Rae1 {[%clk 0:01:32]}  Nc5 {[%clk 0:01:34]} 26. Rc7 {[%clk 0:01:26]}  Rdc8 {[%clk 0:01:17]} 27. Ree7 {[%clk 0:01:24]}  Rxc7 {[%clk 0:01:17]} 28. Rxc7 {[%clk 0:01:25]}  b6 {[%clk 0:01:05]} 29. Bd5 {[%clk 0:01:21]}  Nd3 {[%clk 0:00:32]} 30. Rxf7+ {[%clk 0:01:19]}  Ke8 {[%clk 0:00:32]} 31. Nh5 {[%clk 0:01:15]}  Ne5 {[%clk 0:00:27]} 32. Nxg7+ {[%clk 0:01:13]}  Kd8 {[%clk 0:00:27]} 33. Rf8+ {[%clk 0:01:11]}  Kc7 {[%clk 0:00:24]} 34. Ne6+ {[%clk 0:01:11]}  Kd6 {[%clk 0:00:25]} 35. Rxb8 {[%clk 0:01:11]}  Kxd5 {[%clk 0:00:25]} 36. Rxb6 {[%clk 0:01:11]}  Bxa4 {[%clk 0:00:25]} 37. Rxa6 {[%clk 0:01:08]}  Bc2 {[%clk 0:00:19]} 38. Nf8 {[%clk 0:01:06]}  Ke4 {[%clk 0:00:18]} 39. Ra7 {[%clk 0:01:02]}  Nf3+ {[%clk 0:00:18]} 40. Kg2 {[%clk 0:01:02]}  Nxg5 {[%clk 0:00:19]} 41. Nxh7 {[%clk 0:01:02]}  Nxh7 {[%clk 0:00:17]} 42. Rxh7 {[%clk 0:01:03]}  Kf4 {[%clk 0:00:18]} 43. Rh4+ {[%clk 0:01:02]}  Kg5 {[%clk 0:00:18]} 44. Rb4 {[%clk 0:01:03]}  Kf6 {[%clk 0:00:19]} 45. Kg3 {[%clk 0:01:04]} 1-0


[Site "https://www.chess.com"]

[Event "Titled Tuesday Blitz March 21 Early 2023"]
[White "Lehtosaari, Mauri"]
[Black "Hambleton, Aman"]
[WhiteFideId "501999"]
[BlackFideId "2606577"]
[WhiteElo "2523"]
[BlackElo "2511"]
[Result "0-1"]
[Round "07"]
[TimeControl "180+2"]
[Date "2023.03.21"]
[WhiteClock "0:00:01"]
[BlackClock "0:00:03"]

1. d4 {[%clk 0:02:57]}  e5 {[%clk 0:03:00]} 2. dxe5 {[%clk 0:02:50]}  Nc6 {[%clk 0:03:00]} 3. Nf3 {[%clk 0:02:48]}  Qe7 {[%clk 0:03:00]} 4. Nc3 {[%clk 0:02:45]}  Nxe5 {[%clk 0:02:58]} 5. Nxe5 {[%clk 0:02:43]}  Qxe5 {[%clk 0:02:59]} 6. g3 {[%clk 0:02:41]}  Bc5 {[%clk 0:02:59]} 7. Bg2 {[%clk 0:02:41]}  d6 {[%clk 0:02:58]} 8. O-O {[%clk 0:02:41]}  Nf6 {[%clk 0:02:59]} 9. a3 {[%clk 0:02:39]}  a6 {[%clk 0:02:47]} 10. Bf4 {[%clk 0:02:35]}  Qh5 {[%clk 0:02:47]} 11. e4 {[%clk 0:02:24]}  Bg4 {[%clk 0:02:23]} 12. Qd3 {[%clk 0:02:19]}  O-O {[%clk 0:02:19]} 13. Rfe1 {[%clk 0:01:56]}  Rae8 {[%clk 0:02:09]} 14. Be3 {[%clk 0:01:49]}  h6 {[%clk 0:01:50]} 15. Bxc5 {[%clk 0:01:43]}  Qxc5 {[%clk 0:01:51]} 16. h3 {[%clk 0:01:44]}  Bh5 {[%clk 0:01:49]} 17. Re3 {[%clk 0:01:29]}  Re7 {[%clk 0:01:41]} 18. Rae1 {[%clk 0:01:29]}  Rfe8 {[%clk 0:01:42]} 19. b4 {[%clk 0:01:23]}  Qb6 {[%clk 0:01:32]} 20. Kh2 {[%clk 0:01:04]}  Bg6 {[%clk 0:01:26]} 21. f4 {[%clk 0:00:57]}  Kf8 {[%clk 0:01:23]} 22. Qc4 {[%clk 0:00:37]}  c6 {[%clk 0:01:09]} 23. e5 {[%clk 0:00:28]}  dxe5 {[%clk 0:01:01]} 24. fxe5 {[%clk 0:00:22]}  Nd7 {[%clk 0:00:26]} 25. Na4 {[%clk 0:00:12]}  Qc7 {[%clk 0:00:18]} 26. Nc5 {[%clk 0:00:10]}  Nxe5 {[%clk 0:00:12]} 27. Qc3 {[%clk 0:00:10]}  Kg8 {[%clk 0:00:07]} 28. Nb3 {[%clk 0:00:06]}  f6 {[%clk 0:00:06]} 29. Nd4 {[%clk 0:00:05]}  Kh7 {[%clk 0:00:05]} 30. Be4 {[%clk 0:00:04]}  Bxe4 {[%clk 0:00:05]} 31. Rxe4 {[%clk 0:00:05]}  Qd7 {[%clk 0:00:04]} 32. R4e3 {[%clk 0:00:04]}  Kh8 {[%clk 0:00:03]} 33. Nb3 {[%clk 0:00:03]}  Qd5 {[%clk 0:00:02]} 34. Nc5 {[%clk 0:00:02]}  b6 {[%clk 0:00:02]} 35. Nxa6 {[%clk 0:00:01]}  Nf3+ {[%clk 0:00:02]} 36. Rxf3 {[%clk 0:00:01]}  Rxe1 {[%clk 0:00:03]} 0-1


[Site "https://www.chess.com"]

[Event "Titled Tuesday Blitz March 21 Early 2023"]
[White "Manukyan, Sargis A."]
[Black "Sonnenschein, Philipp"]
[WhiteFideId "13303970"]
[BlackFideId "16250877"]
[WhiteElo "2187"]
[BlackElo "2224"]
[Result "1-0"]
[Round "07"]
[TimeControl "180+2"]
[Date "2023.03.21"]
[WhiteClock "0:01:45"]
[BlackClock "0:00:30"]

1. d4 {[%clk 0:03:00]}  Nf6 {[%clk 0:02:59]} 2. c4 {[%clk 0:03:01]}  e6 {[%clk 0:02:59]} 3. Nc3 {[%clk 0:03:01]}  Bb4 {[%clk 0:02:59]} 4. a3 {[%clk 0:03:01]}  Bxc3+ {[%clk 0:02:59]} 5. bxc3 {[%clk 0:03:02]}  Nc6 {[%clk 0:02:57]} 6. e3 {[%clk 0:03:03]}  b6 {[%clk 0:02:56]} 7. Bd3 {[%clk 0:03:03]}  Ba6 {[%clk 0:02:56]} 8. e4 {[%clk 0:03:03]}  Na5 {[%clk 0:02:53]} 9. e5 {[%clk 0:03:03]}  Ng8 {[%clk 0:02:53]} 10. Qg4 {[%clk 0:03:03]}  Kf8 {[%clk 0:02:48]} 11. Bg5 {[%clk 0:03:01]}  f6 {[%clk 0:02:42]} 12. exf6 {[%clk 0:02:59]}  Nxf6 {[%clk 0:02:42]} 13. Qe2 {[%clk 0:02:55]}  Kf7 {[%clk 0:02:28]} 14. Nf3 {[%clk 0:02:55]}  Rf8 {[%clk 0:02:25]} 15. Bxh7 {[%clk 0:02:51]}  d6 {[%clk 0:02:06]} 16. Bd3 {[%clk 0:02:32]}  Kg8 {[%clk 0:02:06]} 17. Nh4 {[%clk 0:02:31]}  e5 {[%clk 0:01:59]} 18. O-O {[%clk 0:02:29]}  exd4 {[%clk 0:01:50]} 19. cxd4 {[%clk 0:02:30]}  Qe8 {[%clk 0:01:49]} 20. Qf3 {[%clk 0:02:27]}  Bxc4 {[%clk 0:01:40]} 21. Rfe1 {[%clk 0:02:27]}  Qf7 {[%clk 0:01:27]} 22. Bg6 {[%clk 0:02:25]}  Qd5 {[%clk 0:01:26]} 23. Qg3 {[%clk 0:02:13]}  Nb3 {[%clk 0:01:13]} 24. Nf5 {[%clk 0:02:06]}  Rf7 {[%clk 0:00:41]} 25. Bxf6 {[%clk 0:01:54]}  Nxa1 {[%clk 0:00:36]} 26. Bxf7+ {[%clk 0:01:45]}  Qxf7 {[%clk 0:00:30]} 27. Nh6+ {[%clk 0:01:45]} 1-0


[Site "https://www.chess.com"]

[Event "Titled Tuesday Blitz March 21 Early 2023"]
[White "Lewtak, Damian"]
[Black "Sanchez Alvares, Kelvin Antonio"]
[WhiteFideId "1141724"]
[BlackFideId "3906680"]
[WhiteElo "2302"]
[BlackElo "2217"]
[Result "1-0"]
[Round "07"]
[TimeControl "180+2"]
[Date "2023.03.21"]
[WhiteClock "0:00:07"]
[BlackClock "0:00:03"]

1. e4 {[%clk 0:03:00]}  e5 {[%clk 0:03:00]} 2. Nf3 {[%clk 0:03:00]}  Nc6 {[%clk 0:03:00]} 3. Bb5 {[%clk 0:02:58]}  a6 {[%clk 0:03:00]} 4. Ba4 {[%clk 0:02:59]}  Nf6 {[%clk 0:02:59]} 5. O-O {[%clk 0:02:59]}  b5 {[%clk 0:02:59]} 6. Bb3 {[%clk 0:02:59]}  Be7 {[%clk 0:02:59]} 7. Re1 {[%clk 0:02:58]}  O-O {[%clk 0:02:59]} 8. h3 {[%clk 0:02:58]}  d6 {[%clk 0:02:57]} 9. c3 {[%clk 0:02:58]}  Nb8 {[%clk 0:02:57]} 10. d4 {[%clk 0:02:57]}  Nbd7 {[%clk 0:02:58]} 11. Nbd2 {[%clk 0:02:57]}  c5 {[%clk 0:02:55]} 12. Nf1 {[%clk 0:02:57]}  Bb7 {[%clk 0:02:52]} 13. Ng3 {[%clk 0:02:57]}  Re8 {[%clk 0:02:49]} 14. d5 {[%clk 0:02:57]}  c4 {[%clk 0:02:40]} 15. Bc2 {[%clk 0:02:57]}  Nc5 {[%clk 0:02:40]} 16. b4 {[%clk 0:02:56]}  cxb3 {[%clk 0:02:38]} 17. axb3 {[%clk 0:02:57]}  Rc8 {[%clk 0:02:33]} 18. Bb2 {[%clk 0:02:55]}  g6 {[%clk 0:02:26]} 19. b4 {[%clk 0:02:54]}  Ncd7 {[%clk 0:02:26]} 20. Nd2 {[%clk 0:02:54]}  h5 {[%clk 0:02:21]} 21. Bd3 {[%clk 0:02:54]}  h4 {[%clk 0:02:21]} 22. Ngf1 {[%clk 0:02:53]}  Nh5 {[%clk 0:02:21]} 23. Ne3 {[%clk 0:02:50]}  Nf4 {[%clk 0:02:21]} 24. Bf1 {[%clk 0:02:50]}  Bf8 {[%clk 0:02:19]} 25. c4 {[%clk 0:02:48]}  bxc4 {[%clk 0:02:16]} 26. Ndxc4 {[%clk 0:02:49]}  Qg5 {[%clk 0:01:52]} 27. Kh2 {[%clk 0:02:43]}  Nb8 {[%clk 0:01:52]} 28. Na5 {[%clk 0:02:26]}  Rc7 {[%clk 0:01:52]} 29. Rc1 {[%clk 0:02:04]}  Rd7 {[%clk 0:01:51]} 30. b5 {[%clk 0:02:00]}  f5 {[%clk 0:01:48]} 31. Ba3 {[%clk 0:01:47]}  Qd8 {[%clk 0:01:38]} 32. Nc6 {[%clk 0:01:42]}  Qf6 {[%clk 0:01:20]} 33. Nxb8 {[%clk 0:01:38]}  Rxb8 {[%clk 0:01:20]} 34. bxa6 {[%clk 0:01:38]}  Ba8 {[%clk 0:01:18]} 35. Rb1 {[%clk 0:01:37]}  Re8 {[%clk 0:01:16]} 36. Qa4 {[%clk 0:01:36]}  Red8 {[%clk 0:01:06]} 37. Rb8 {[%clk 0:01:31]}  Qf7 {[%clk 0:01:04]} 38. Rxd8 {[%clk 0:01:28]}  Rxd8 {[%clk 0:01:04]} 39. Rc1 {[%clk 0:01:25]}  fxe4 {[%clk 0:01:01]} 40. Qxe4 {[%clk 0:01:24]}  Kh7 {[%clk 0:00:48]} 41. Rc2 {[%clk 0:00:57]}  Bh6 {[%clk 0:00:39]} 42. Bb4 {[%clk 0:00:42]}  Bg5 {[%clk 0:00:38]} 43. Ba5 {[%clk 0:00:41]}  Rd7 {[%clk 0:00:37]} 44. Rc8 {[%clk 0:00:37]}  Bxd5 {[%clk 0:00:34]} 45. Nxd5 {[%clk 0:00:36]}  Nxd5 {[%clk 0:00:34]} 46. Qf3 {[%clk 0:00:30]}  Bf4+ {[%clk 0:00:27]} 47. Kg1 {[%clk 0:00:24]}  Ne7 {[%clk 0:00:16]} 48. Rb8 {[%clk 0:00:24]}  Nf5 {[%clk 0:00:15]} 49. Rb7 {[%clk 0:00:24]}  Nd4 {[%clk 0:00:15]} 50. Qe4 {[%clk 0:00:18]}  d5 {[%clk 0:00:15]} 51. Rxd7 {[%clk 0:00:18]}  Qxd7 {[%clk 0:00:16]} 52. Qb1 {[%clk 0:00:17]}  e4 {[%clk 0:00:13]} 53. Qb6 {[%clk 0:00:16]}  Nf5 {[%clk 0:00:12]} 54. a7 {[%clk 0:00:15]}  e3 {[%clk 0:00:12]} 55. a8=Q {[%clk 0:00:14]}  exf2+ {[%clk 0:00:11]} 56. Qxf2 {[%clk 0:00:15]}  Be3 {[%clk 0:00:11]} 57. Qxe3 {[%clk 0:00:08]}  Nxe3 {[%clk 0:00:11]} 58. Qd8 {[%clk 0:00:06]}  Qf7 {[%clk 0:00:10]} 59. Bd3 {[%clk 0:00:04]}  Nd1 {[%clk 0:00:08]} 60. Be1 {[%clk 0:00:03]}  Qa7+ {[%clk 0:00:04]} 61. Kh2 {[%clk 0:00:03]}  Qe3 {[%clk 0:00:04]} 62. Qxh4+ {[%clk 0:00:03]}  Kg7 {[%clk 0:00:04]} 63. Qg3 {[%clk 0:00:04]}  Qxg3+ {[%clk 0:00:03]} 64. Bxg3 {[%clk 0:00:04]}  Kf6 {[%clk 0:00:03]} 65. Be2 {[%clk 0:00:04]}  Nc3 {[%clk 0:00:03]} 66. Bf3 {[%clk 0:00:05]}  d4 {[%clk 0:00:03]} 67. Be1 {[%clk 0:00:05]}  Nb1 {[%clk 0:00:02]} 68. Kg3 {[%clk 0:00:06]}  d3 {[%clk 0:00:02]} 69. Bd1 {[%clk 0:00:06]}  d2 {[%clk 0:00:03]} 70. Bf2 {[%clk 0:00:06]}  Nc3 {[%clk 0:00:03]} 71. Bd4+ {[%clk 0:00:07]}  Kf5 {[%clk 0:00:03]} 72. Bxc3 {[%clk 0:00:07]} 1-0


[Site "https://www.chess.com"]

[Event "Titled Tuesday Blitz March 21 Early 2023"]
[White "Khandelwal, Ankush"]
[Black "Domingo Nunez, Ruben"]
[WhiteFideId "413470"]
[BlackFideId "22245570"]
[WhiteElo "2263"]
[BlackElo "2404"]
[Result "0-1"]
[Round "07"]
[TimeControl "180+2"]
[Date "2023.03.21"]
[WhiteClock "0:00:41"]
[BlackClock "0:01:46"]

1. e4 {[%clk 0:02:57]}  g6 {[%clk 0:03:00]} 2. d4 {[%clk 0:02:48]}  Bg7 {[%clk 0:03:01]} 3. Nc3 {[%clk 0:02:45]}  c6 {[%clk 0:03:02]} 4. f4 {[%clk 0:02:39]}  d5 {[%clk 0:03:01]} 5. e5 {[%clk 0:02:37]}  f6 {[%clk 0:03:02]} 6. Nf3 {[%clk 0:02:33]}  Nh6 {[%clk 0:03:02]} 7. Be3 {[%clk 0:02:28]}  Bg4 {[%clk 0:03:02]} 8. Be2 {[%clk 0:02:26]}  Nf5 {[%clk 0:03:02]} 9. Bf2 {[%clk 0:02:24]}  Bxf3 {[%clk 0:03:01]} 10. Bxf3 {[%clk 0:02:21]}  fxe5 {[%clk 0:03:02]} 11. dxe5 {[%clk 0:02:17]}  O-O {[%clk 0:03:02]} 12. Qd2 {[%clk 0:02:04]}  e6 {[%clk 0:03:02]} 13. g3 {[%clk 0:02:01]}  Nh6 {[%clk 0:02:59]} 14. Bc5 {[%clk 0:01:45]}  Rf7 {[%clk 0:02:57]} 15. O-O-O {[%clk 0:01:45]}  Nd7 {[%clk 0:02:57]} 16. Bd6 {[%clk 0:01:43]}  Nf5 {[%clk 0:02:56]} 17. Ba3 {[%clk 0:01:41]}  Nxe5 {[%clk 0:02:52]} 18. Be2 {[%clk 0:01:36]}  Nd7 {[%clk 0:02:30]} 19. Kb1 {[%clk 0:01:34]}  e5 {[%clk 0:02:27]} 20. fxe5 {[%clk 0:01:28]}  Bh6 {[%clk 0:02:22]} 21. Qe1 {[%clk 0:01:13]}  Nxe5 {[%clk 0:02:22]} 22. g4 {[%clk 0:01:06]}  Ne3 {[%clk 0:02:21]} 23. Rd4 {[%clk 0:01:06]}  b5 {[%clk 0:01:53]} 24. h4 {[%clk 0:01:05]}  Qb6 {[%clk 0:01:50]} 25. g5 {[%clk 0:00:41]}  Qxd4 {[%clk 0:01:45]} 26. gxh6 {[%clk 0:00:41]}  b4 {[%clk 0:01:46]} 0-1


[Site "https://www.chess.com"]